Workbook

Sheet 补助对象发放明细
A1: 附表
A2: 渝水区2025年度巩固拓展脱贫攻坚成果同乡村振兴有效衔接产业奖补补助对象发放明细表
A3: 序 号 | B3: 乡镇 | C3: 村/处 | D3: 组 | E3: 户主姓名 | F3: 家庭人口数 | G3: 身份证号码 | I3: 花 生 | J3: 玉米 | K3: 红薯 | L3: 牛 | M3: 羊 | N3: 兔子 | O3: 家禽（鸡、鸭、鹅等） | P3: 其他禽类（鸽子、鹌鹑等） | Q3: 蜜蜂 | R3: 特种养殖（虾、蛙、蚯蚓、黄鳝、泥鳅） | S3: 水果（含新余蜜桔、果冻橙、水蜜桃、沃柑、火龙果、梨、西瓜、香瓜等） | T3: 林业（新种植用材林或苗木） | U3: 茶种植（油茶、茶叶） | V3: 蔬菜（含蘑菇、莲藕、莲子、荞麦、芝麻、萝卜、豆角等) | W3: 中 药 材 | X3: 服务业 | Y3: 合计 （元） | Z3: 实际补助金额（元） | AA3: 防返贫监测户类型
A4: 直补标准 | I4: 500元/亩 | J4: 500元/亩 | K4: 500元/亩 | L4: 1000元/头 | M4: 300元/头 | N4: 20元/只 | O4: 10元/羽 | P4: 20元/羽 | Q4: 200元/箱 | R4: 1000元/亩 | S4: 500元/亩 | T4: 500元/亩 | U4: 500元/亩 | V4: 500元/亩 | W4: 500元/亩 | X4: 2000元/户
A5: 1 | B5: 鹄山镇 | C5: 晓堆村 | D5: 官路组 | E5: 简何连 | F5: 2 | G5: 360502*********327 | H5: =REPLACE(G5,7,9,"*********") -> 360502*********327 | I5: 1 | Y5: =I5*500+J5*500+K5*500+L5*1000+M5*300+N5*20+O5*10+P5*20+Q5*200+R5*1000+S5*500+T5*500+U5*500+V5*500+W5*500+X5*2000 -> 500 | Z5: 500 | AA5: 脱贫户
A6: 2 | B6: 鹄山镇 | C6: 晓堆村 | D6: 晓堆组 | E6: 肖红根 | F6: 3 | G6: 360502*********316 | H6: =REPLACE(G6,7,9,"*********") -> 360502*********316 | I6: 1 | O6: 35 | Y6: =I6*500+J6*500+K6*500+L6*1000+M6*300+N6*20+O6*10+P6*20+Q6*200+R6*1000+S6*500+T6*500+U6*500+V6*500+W6*500+X6*2000 -> 850 | Z6: 850 | AA6: 脱贫户
A7: 3 | B7: 鹄山镇 | C7: 晓堆村 | D7: 晓堆组 | E7: 肖礼芽 | F7: 3 | G7: 360502*********315 | H7: 360502*********315 | I7: 1 | Y7: =I7*500+J7*500+K7*500+L7*1000+M7*300+N7*20+O7*10+P7*20+Q7*200+R7*1000+S7*500+T7*500+U7*500+V7*500+W7*500+X7*2000 -> 500 | Z7: 500 | AA7: 脱贫户
A8: 4 | B8: 鹄山镇 | C8: 递步村 | D8: 递步组 | E8: 简木连 | F8: 1 | G8: 360502*********32064 | H8: 360502*********32064 | I8: 1.1 | O8: 40 | V8: 1.5 | Y8: =I8*500+J8*500+K8*500+L8*1000+M8*300+N8*20+O8*10+P8*20+Q8*200+R8*1000+S8*500+T8*500+U8*500+V8*500+W8*500+X8*2000 -> 1700 | Z8: 1700 | AA8: 脱贫户
A9: 5 | B9: 鹄山镇 | C9: 递步村 | D9: 递步组 | E9: 黎清华 | F9: 3 | G9: 360502*********351 | H9: 360502*********351 | I9: 1.5 | O9: 32 | V9: 2.2 | Y9: 2170 | Z9: 2170 | AA9: 脱贫户
A10: 6 | B10: 鹄山镇 | C10: 递步村 | D10: 递步组 | E10: 黎吉华 | F10: 1 | G10: 360502*********31X | H10: 360502*********31X | I10: 3.6 | O10: 48 | S10: 2 | V10: 1 | Y10: 3780 | Z10: 3780 | AA10: 脱贫户
A11: 7 | B11: 鹄山镇 | C11: 递步村 | D11: 递步组 | E11: 黎润口 | F11: 4 | G11: 360502*********316 | H11: 360502*********316 | I11: 1.5 | O11: 40 | V11: 1.5 | Y11: 1900 | Z11: 1900 | AA11: 脱贫户
A12: 8 | B12: 鹄山镇 | C12: 递步村 | D12: 库溪组 | E12: 黎根彩 | F12: 2 | G12: 360502*********312 | H12: 360502*********312 | I12: 2 | O12: 31 | V12: 2 | Y12: 2310 | Z12: 2310 | AA12: 脱贫户
A13: 9 | B13: 鹄山镇 | C13: 递步村 | D13: 上塘组 | E13: 简月根 | F13: 2 | G13: 360502*********315 | H13: 360502*********315 | I13: 2 | O13: 31 | V13: 2.5 | Y13: 2560 | Z13: 2560 | AA13: 脱贫户
A14: 10 | B14: 鹄山镇 | C14: 递步村 | D14: 上塘组 | E14: 简梅根 | F14: 2 | G14: 360502*********316 | H14: 360502*********316 | I14: 2 | O14: 30 | V14: 1.5 | Y14: 2050 | Z14: 2050 | AA14: 脱贫户
A15: 11 | B15: 鹄山镇 | C15: 递步村 | D15: 上塘组 | E15: 廖赖香 | F15: 1 | G15: 360502*********326 | H15: 360502*********326 | I15: 1.5 | O15: 31 | V15: 1.5 | Y15: 1810 | Z15: 1810 | AA15: 脱贫户
A16: 12 | B16: 鹄山镇 | C16: 递步村 | D16: 上塘组 | E16: 简草根 | F16: 2 | G16: 360502*********31932 | H16: 360502*********31932 | I16: 2.1 | V16: 2 | Y16: 2050 | Z16: 2050 | AA16: 脱贫户
A17: 13 | B17: 鹄山镇 | C17: 递步村 | D17: 上塘组 | E17: 简福来 | F17: 2 | G17: 360502*********316 | H17: 360502*********316 | I17: 1.5 | V17: 1 | Y17: 1250 | Z17: 1250 | AA17: 脱贫户
A18: 14 | B18: 鹄山镇 | C18: 递步村 | D18: 竹南组 | E18: 黎木根 | F18: 3 | G18: 360502*********318 | H18: 360502*********318 | I18: 1 | V18: 1 | Y18: 1000 | Z18: 1000 | AA18: 脱贫户
A19: 15 | B19: 鹄山镇 | C19: 递步村 | D19: 竹南组 | E19: 黎金生 | F19: 1 | G19: 360502*********317 | H19: 360502*********317 | I19: 1.2 | S19: 1 | Y19: 1100 | Z19: 1100 | AA19: 脱贫户
A20: 16 | B20: 鹄山镇 | C20: 递步村 | D20: 竹南组 | E20: 简发英 | F20: 1 | G20: 360502*********321 | H20: 360502*********321 | I20: 1.6 | O20: 30 | V20: 2 | Y20: 2100 | Z20: 2100 | AA20: 脱贫户
A21: 17 | B21: 鹄山镇 | C21: 递步村 | D21: 竹南组 | E21: 黄带妹 | F21: 1 | G21: 360502*********324 | H21: 360502*********324 | I21: 1.2 | V21: 1 | Y21: 1100 | Z21: 1100 | AA21: 脱贫户
A22: 18 | B22: 鹄山镇 | C22: 递步村 | D22: 竹南组 | E22: 黎耐仔 | F22: 2 | G22: 360502*********313 | H22: 360502*********313 | I22: 1.4 | V22: 2.2 | Y22: 1800 | Z22: 1800 | AA22: 脱贫户
A23: 19 | B23: 鹄山镇 | C23: 桐村村 | D23: 榨下组 | E23: 简发根 | F23: 2 | G23: 360502*********312 | H23: 360502*********312 | O23: 22 | Y23: =I23*500+J23*500+K23*500+L23*1000+M23*300+N23*20+O23*10+P23*20+Q23*200+R23*1000+S23*500+T23*500+U23*500+V23*500+W23*500+X23*2000 -> 220 | Z23: 220 | AA23: 脱贫户
A24: 20 | B24: 鹄山镇 | C24: 桐村村 | D24: 榨下组 | E24: 简牛仔 | F24: 2 | G24: 360502*********319 | H24: 360502*********319 | I24: 1.2 | J24: 1.1 | O24: 46 | V24: 1.4 | Y24: 2310 | Z24: 2310 | AA24: 脱贫户
A25: 21 | B25: 鹄山镇 | C25: 桐村村 | D25: 廖家组 | E25: 廖歪仔 | F25: 2 | G25: 360502*********312 | H25: 360502*********312 | I25: 1.1 | Y25: 550 | Z25: 550 | AA25: 脱贫户
A26: 22 | B26: 鹄山镇 | C26: 桐村村 | D26: 桐村组 | E26: 简流平 | F26: 1 | G26: 360502*********330 | H26: 360502*********330 | I26: 1.7 | O26: 35 | S26: 2.4 | Y26: 2400 | Z26: 2400 | AA26: 脱贫户
A27: 23 | B27: 鹄山镇 | C27: 桐村村 | D27: 桐村组 | E27: 黄禾秀 | F27: 1 | G27: 360502*********320 | H27: 360502*********320 | I27: 1.5 | Y27: 750 | Z27: 750 | AA27: 脱贫户
A28: 24 | B28: 鹄山镇 | C28: 桐村村 | D28: 桐村组 | E28: 简正生 | F28: 5 | G28: 360502*********334 | H28: 360502*********334 | I28: 1.3 | O28: 92 | S28: 1.1 | Y28: 2120 | Z28: 2120 | AA28: 脱贫户
A29: 25 | B29: 鹄山镇 | C29: 坑里村 | D29: 枧江组 | E29: 黄乃乃 | F29: 2 | G29: 360502*********314 | H29: 360502*********314 | I29: 1 | V29: 1 | Y29: =I29*500+J29*500+K29*500+L29*1000+M29*300+N29*20+O29*10+P29*20+Q29*200+R29*1000+S29*500+T29*500+U29*500+V29*500+W29*500+X29*2000 -> 1000 | Z29: 1000 | AA29: 脱贫户
A30: 26 | B30: 鹄山镇 | C30: 坑里村 | D30: 坑里组 | E30: 黄禄皮 | F30: 2 | G30: 360502*********315 | H30: 360502*********315 | I30: 1 | V30: 1 | Y30: =I30*500+J30*500+K30*500+L30*1000+M30*300+N30*20+O30*10+P30*20+Q30*200+R30*1000+S30*500+T30*500+U30*500+V30*500+W30*500+X30*2000 -> 1000 | Z30: 1000 | AA30: 脱贫户
A31: 27 | B31: 鹄山镇 | C31: 坑里村 | D31: 坑里组 | E31: 陈芳莲 | F31: 1 | G31: 360502*********324 | H31: 360502*********324 | I31: 1 | V31: 1 | Y31: =I31*500+J31*500+K31*500+L31*1000+M31*300+N31*20+O31*10+P31*20+Q31*200+R31*1000+S31*500+T31*500+U31*500+V31*500+W31*500+X31*2000 -> 1000 | Z31: 1000 | AA31: 脱贫户
A32: 28 | B32: 鹄山镇 | C32: 荷沂村 | D32: 付家组 | E32: 邹细根 | F32: 2 | G32: 360502*********31X | H32: 360502*********31X | V32: 1.5 | Y32: =I32*500+J32*500+K32*500+L32*1000+M32*300+N32*20+O32*10+P32*20+Q32*200+R32*1000+S32*500+T32*500+U32*500+V32*500+W32*500+X32*2000 -> 750 | Z32: 750 | AA32: 脱贫户
A33: 29 | B33: 鹄山镇 | C33: 荷沂村 | D33: 荷沂组 | E33: 黄禾根 | F33: 3 | G33: 360502*********313 | H33: 360502*********313 | I33: 1 | V33: 1.8 | Y33: =I33*500+J33*500+K33*500+L33*1000+M33*300+N33*20+O33*10+P33*20+Q33*200+R33*1000+S33*500+T33*500+U33*500+V33*500+W33*500+X33*2000 -> 1400 | Z33: 1400 | AA33: 脱贫户
A34: 30 | B34: 鹄山镇 | C34: 蓝塘村 | D34: 东边组 | E34: 晏凯 | F34: 2 | G34: 360502*********315 | H34: 360502*********315 | I34: 1 | O34: 20 | Y34: =I34*500+J34*500+K34*500+L34*1000+M34*300+N34*20+O34*10+P34*20+Q34*200+R34*1000+S34*500+T34*500+U34*500+V34*500+W34*500+X34*2000 -> 700 | Z34: 700 | AA34: 脱贫户
A35: 31 | B35: 鹄山镇 | C35: 蓝塘村 | D35: 西边组 | E35: 晏金生 | F35: 3 | G35: 360502*********379 | H35: 360502*********379 | O35: 32 | V35: 1.3 | Y35: 970 | Z35: 970 | AA35: 脱贫户
A36: 32 | B36: 鹄山镇 | C36: 蓝塘村 | D36: 西边组 | E36: 晏三宝 | F36: 3 | G36: 360502*********310 | H36: 360502*********310 | I36: 1 | O36: 60 | Y36: 1100 | Z36: 1100 | AA36: 脱贫户
A37: 33 | B37: 鹄山镇 | C37: 蓝塘村 | D37: 西边组 | E37: 晏梅生 | F37: 3 | G37: 360502*********319 | H37: 360502*********319 | U37: 2 | Y37: 1000 | Z37: 1000 | AA37: 脱贫户
A38: 34 | B38: 鹄山镇 | C38: 蓝塘村 | D38: 西边组 | E38: 晏贷女 | F38: 2 | G38: 360502*********311 | H38: 360502*********311 | I38: 1.5 | L38: 4 | O38: 20 | Y38: 4950 | Z38: 4950 | AA38: 脱贫户
A39: 35 | B39: 鹄山镇 | C39: 蓝塘村 | D39: 北斗组 | E39: 陈九根 | F39: 3 | G39: 360502*********318 | H39: 360502*********318 | U39: 2 | Y39: 1000 | Z39: 1000 | AA39: 脱贫户
A40: 36 | B40: 鹄山镇 | C40: 蓝塘村 | D40: 徐家组 | E40: 徐四仔 | F40: 2 | G40: 360502*********314 | H40: 360502*********314 | O40: 30 | S40: 2 | Y40: 1300 | Z40: 1300 | AA40: 脱贫户
A41: 37 | B41: 鹄山镇 | C41: 蓝塘村 | D41: 徐家组 | E41: 徐苟始 | F41: 1 | G41: 360502*********314 | H41: 360502*********314 | U41: 1 | Y41: 500 | Z41: 500 | AA41: 脱贫户
A42: 38 | B42: 鹄山镇 | C42: 蓝塘村 | D42: 江上组 | E42: 黄小发 | F42: 5 | G42: 360502*********311 | H42: 360502*********311 | I42: 1 | O42: 1300 | Y42: 13500 | Z42: 10500 | AA42: 脱贫户
A43: 39 | B43: 鹄山镇 | C43: 蓝塘村 | D43: 力下组 | E43: 黄金生 | F43: 3 | G43: 360502*********33X | H43: 360502*********33X | O43: 31 | S43: 1.5 | Y43: 1060 | Z43: 1060 | AA43: 脱贫户
A44: 40 | B44: 鹄山镇 | C44: 蓝塘村 | D44: 力下组 | E44: 黄易珍 | F44: 1 | G44: 360502*********32X | H44: 360502*********32X | U44: 1.5 | Y44: 750 | Z44: 750 | AA44: 脱贫户
A45: 41 | B45: 鹄山镇 | C45: 鹄山村 | D45: 鹄山2组 | E45: 晏春香 | F45: 5 | G45: 360502*********320 | H45: 360502*********320 | I45: 1.5 | L45: 1 | V45: 1.2 | Y45: =I45*500+J45*500+K45*500+L45*1000+M45*300+N45*20+O45*10+P45*20+Q45*200+R45*1000+S45*500+T45*500+U45*500+V45*500+W45*500+X45*2000 -> 2350 | Z45: 2350 | AA45: 脱贫户
A46: 42 | B46: 鹄山镇 | C46: 鹄山村 | D46: 鹄山3组 | E46: 黄金平 | F46: 3 | G46: 360502*********31X | H46: 360502*********31X | I46: 1.1 | Y46: 550 | Z46: 550 | AA46: 脱贫户
A47: 43 | B47: 鹄山镇 | C47: 鹄山村 | D47: 鹄山5组 | E47: 黄水根 | F47: 1 | G47: 360502*********315 | H47: 360502*********315 | I47: 1.1 | Y47: 550 | Z47: 550 | AA47: 脱贫户
A48: 44 | B48: 鹄山镇 | C48: 鹄山村 | D48: 鹄山7组 | E48: 黄菊香 | F48: 1 | G48: 360502*********32X | H48: 360502*********32X | I48: 1 | Y48: 500 | Z48: 500 | AA48: 脱贫户
A49: 45 | B49: 鹄山镇 | C49: 鹄山村 | D49: 鹄山7组 | E49: 黄斤半 | F49: 2 | G49: 360502*********314 | H49: 360502*********314 | I49: 1.5 | M49: 6 | O49: 30 | V49: 1 | Y49: 3350 | Z49: 3350 | AA49: 脱贫户
A50: 46 | B50: 鹄山镇 | C50: 鹄山村 | D50: 鹄山7组 | E50: 肖木连 | F50: 2 | G50: 360502*********387 | H50: 360502*********387 | I50: 1 | L50: 1 | O50: 30 | Y50: 1800 | Z50: 1800 | AA50: 脱贫户
A51: 47 | B51: 鹄山镇 | C51: 鹄山村 | D51: 陈家组 | E51: 付水金 | F51: 1 | G51: 360502*********313 | H51: 360502*********313 | I51: 1 | U51: 1 | Y51: 1000 | Z51: 1000 | AA51: 脱贫户
A52: 48 | B52: 鹄山镇 | C52: 鹄山村 | D52: 前山组 | E52: 黄连根 | F52: 3 | G52: 360502*********311 | H52: 360502*********311 | O52: 30 | Y52: 300 | Z52: 300 | AA52: 脱贫户
A53: 49 | B53: 鹄山镇 | C53: 鹄山村 | D53: 前山组 | E53: 廖草秀 | F53: 1 | G53: 360502*********325 | H53: 360502*********325 | I53: 1 | Y53: 500 | Z53: 500 | AA53: 脱贫户
A54: 50 | B54: 鹄山镇 | C54: 鹄山村 | D54: 前山组 | E54: 简木连 | F54: 2 | G54: 360502*********321 | H54: 360502*********321 | I54: 1.2 | Y54: 600 | Z54: 600 | AA54: 脱贫户
A55: 51 | B55: 鹄山镇 | C55: 鹄山村 | D55: 塘下组 | E55: 黄唆根 | F55: 6 | G55: 360502*********311 | H55: 360502*********311 | I55: 1 | O55: 30 | Y55: 800 | Z55: 800 | AA55: 脱贫户
A56: 52 | B56: 鹄山镇 | C56: 鹄山村 | D56: 塘下组 | E56: 黄检苟 | F56: 3 | G56: 360502*********310 | H56: 360502*********310 | O56: 32 | Y56: 320 | Z56: 320 | AA56: 脱贫户
A57: 53 | B57: 鹄山镇 | C57: 鹄山村 | D57: 鹄山5组 | E57: 袁简英 | F57: 7 | G57: 360502*********326 | H57: 360502*********326 | I57: 1.1 | O57: 30 | V57: 1 | Y57: 1350 | Z57: 1350 | AA57: 脱贫户
A58: 54 | B58: 鹄山镇 | C58: 鹄山村 | D58: 钟家组 | E58: 钟召香 | F58: 1 | G58: 360502*********313 | H58: 360502*********313 | I58: 1 | O58: 31 | V58: 1.1 | Y58: 1360 | Z58: 1360 | AA58: 脱贫户
A59: 55 | B59: 鹄山镇 | C59: 鹄山村 | D59: 力塘下组 | E59: 晏秋连 | F59: 2 | G59: 360502*********347 | H59: 360502*********347 | O59: 30 | Y59: 300 | Z59: 300 | AA59: 脱贫户
A60: 56 | B60: 鹄山镇 | C60: 窝里村 | D60: 江边组 | E60: 黄火兰 | F60: 1 | G60: 360502*********327 | H60: 360502*********327 | I60: 1.1 | O60: 31 | Y60: =I60*500+J60*500+K60*500+L60*1000+M60*300+N60*20+O60*10+P60*20+Q60*200+R60*1000+S60*500+T60*500+U60*500+V60*500+W60*500+X60*2000 -> 860 | Z60: 860 | AA60: 脱贫户
A61: 57 | B61: 鹄山镇 | C61: 窝里村 | D61: 洞里组 | E61: 黄木根 | F61: 1 | G61: 360502*********31X | H61: 360502*********31X | O61: 33 | Y61: 330 | Z61: 330 | AA61: 脱贫户
A62: 58 | B62: 鹄山镇 | C62: 窝里村 | D62: 洞里组 | E62: 黄反仔 | F62: 2 | G62: 360502*********318 | H62: 360502*********318 | I62: 1.5 | O62: 41 | V62: 1.4 | Y62: 1860 | Z62: 1860 | AA62: 脱贫户
A63: 59 | B63: 鹄山镇 | C63: 窝里村 | D63: 洞里组 | E63: 何根兰 | F63: 4 | G63: 360502*********340 | H63: 360502*********340 | I63: 1.1 | O63: 30 | V63: 1 | Y63: 1350 | Z63: 1350 | AA63: 脱贫户
A64: 60 | B64: 鹄山镇 | C64: 窝里村 | D64: 乌山组 | E64: 高小静 | F64: 3 | G64: 360502*********311 | H64: 360502*********311 | I64: 1.1 | O64: 38 | V64: 1 | Y64: 1430 | Z64: 1430 | AA64: 脱贫户
A65: 61 | B65: 鹄山镇 | C65: 窝里村 | D65: 乌山组 | E65: 高苟生 | F65: 3 | G65: 360502*********318 | H65: 360502*********318 | I65: 1.9 | O65: 30 | V65: 1.6 | Y65: 2050 | Z65: 2050 | AA65: 脱贫户
A66: 62 | B66: 鹄山镇 | C66: 窝里村 | D66: 新屋组 | E66: 习思义 | F66: 2 | G66: 360502*********313 | H66: 360502*********313 | I66: 1 | O66: 45 | Y66: 950 | Z66: 950 | AA66: 脱贫户
A67: 63 | B67: 鹄山镇 | C67: 窝里村 | D67: 新屋组 | E67: 肖连秀 | F67: 1 | G67: 360502*********320 | H67: 360502*********320 | O67: 32 | V67: 1 | Y67: 820 | Z67: 820 | AA67: 脱贫户
A68: 64 | B68: 鹄山镇 | C68: 窝里村 | D68: 老屋组 | E68: 习菊桂 | F68: 2 | G68: 360502*********315 | H68: 360502*********315 | I68: 1 | O68: 32 | V68: 1 | Y68: 1320 | Z68: 1320 | AA68: 脱贫户
A69: 65 | B69: 鹄山镇 | C69: 窝里村 | D69: 老屋组 | E69: 简润连 | F69: 3 | G69: 360502*********320 | H69: 360502*********320 | I69: 1.6 | O69: 33 | V69: 1 | Y69: 1630 | Z69: 1630 | AA69: 脱贫户
A70: 66 | B70: 鹄山镇 | C70: 窝里村 | D70: 脑老组 | E70: 张巴连 | F70: 3 | G70: 360502*********335 | H70: =REPLACE(G70,7,9,"*********") -> 360502*********335 | O70: 30 | Y70: 300 | Z70: 300 | AA70: 脱贫户
A71: 67 | B71: 鹄山镇 | C71: 窝里村 | D71: 脑老组 | E71: 张金根 | F71: 3 | G71: 360502*********311 | H71: 360502*********311 | I71: 1.6 | L71: 1 | V71: 1.5 | Y71: 2550 | Z71: 2550 | AA71: 脱贫户
A72: 68 | B72: 鹄山镇 | C72: 窝里村 | D72: 脑老组 | E72: 张越咀 | F72: 1 | G72: 360502*********313 | H72: 360502*********313 | I72: 1 | V72: 1 | Y72: 1000 | Z72: 1000 | AA72: 脱贫户
A73: 69 | B73: 鹄山镇 | C73: 窝里村 | D73: 洞里组 | E73: 黄春芽 | F73: 2 | G73: 360502*********315 | H73: 360502*********315 | I73: 1 | O73: 36 | Y73: 860 | Z73: 860 | AA73: 脱贫户
A74: 70 | B74: 鹄山镇 | C74: 上塘村 | D74: 上塘组 | E74: 简水仔 | F74: 2 | G74: 360502*********310 | H74: 360502*********310 | V74: 1 | Y74: =I74*500+J74*500+K74*500+L74*1000+M74*300+N74*20+O74*10+P74*20+Q74*200+R74*1000+S74*500+T74*500+U74*500+V74*500+W74*500+X74*2000 -> 500 | Z74: 500 | AA74: 脱贫户
A75: 71 | B75: 鹄山镇 | C75: 上塘村 | D75: 上塘组 | E75: 简海华 | F75: 1 | G75: 360502*********311 | H75: 360502*********311 | V75: 1 | Y75: 500 | Z75: 500 | AA75: 脱贫户
A76: 72 | B76: 鹄山镇 | C76: 上塘村 | D76: 上塘组 | E76: 简建新 | F76: 1 | G76: 360502*********313 | H76: 360502*********313 | J76: 1 | K76: 0.5 | L76: 1 | O76: 34 | V76: 1 | Y76: 2590 | Z76: 2590 | AA76: 脱贫户
A77: 73 | B77: 鹄山镇 | C77: 上塘村 | D77: 湖塘组 | E77: 何小发 | F77: 2 | G77: 360502*********313 | H77: 360502*********313 | V77: 1 | Y77: 500 | Z77: 500 | AA77: 脱贫户
A78: 74 | B78: 鹄山镇 | C78: 上塘村 | D78: 湖塘组 | E78: 何反生 | F78: 2 | G78: 360502*********318 | H78: 360502*********318 | I78: 2.5 | O78: 32 | V78: 2 | Y78: 2570 | Z78: 2570 | AA78: 脱贫户
A79: 75 | B79: 鹄山镇 | C79: 上塘村 | D79: 湖塘组 | E79: 何喜根 | F79: 1 | G79: 360502*********312 | H79: 360502*********312 | I79: 1 | Y79: 500 | Z79: 500 | AA79: 脱贫户
A80: 76 | B80: 鹄山镇 | C80: 上塘村 | D80: 湖塘组 | E80: 何根连 | F80: 2 | G80: 360502*********355 | H80: 360502*********355 | I80: 1.5 | V80: 1.6 | Y80: 1550 | Z80: 1550 | AA80: 脱贫户
A81: 77 | B81: 鹄山镇 | C81: 上塘村 | D81: 湖塘组 | E81: 何春根 | F81: 1 | G81: 360502*********317 | H81: 360502*********317 | V81: 1.2 | Y81: 600 | Z81: 600 | AA81: 脱贫户
A82: 78 | B82: 鹄山镇 | C82: 上塘村 | D82: 湖塘组 | E82: 习银秀 | F82: 1 | G82: 360502*********345 | H82: 360502*********345 | I82: 1 | Y82: 500 | Z82: 500 | AA82: 脱贫户
A83: 79 | B83: 界水乡 | C83: 布下村 | D83: 东家坊组 | E83: 赖春生 | F83: 4 | G83: 360502*********811 | H83: 360502*********811 | V83: 1.2 | Y83: =I83*500+J83*500+K83*500+L83*1000+M83*300+N83*20+O83*10+P83*20+Q83*200+R83*1000+S83*500+T83*500+U83*500+V83*500+W83*500+X83*2000 -> 600 | Z83: 600 | AA83: 脱贫户
A84: 80 | B84: 界水乡 | C84: 布下村 | D84: 东家坊组 | E84: 赖苟珠 | F84: 2 | G84: 360502*********813 | H84: 360502*********813 | O84: 31 | Y84: 310 | Z84: 310 | AA84: 脱贫户
A85: 81 | B85: 界水乡 | C85: 布下村 | D85: 东家坊组 | E85: 赖长保 | F85: 3 | G85: 360502*********831 | H85: 360502*********831 | I85: 1 | O85: 700 | U85: 1 | V85: 1.5 | Y85: 8750 | Z85: 8750 | AA85: 脱贫户
A86: 82 | B86: 界水乡 | C86: 布下村 | D86: 东家坊组 | E86: 吕根英 | F86: 2 | G86: 360502*********861 | H86: 360502*********861 | O86: 35 | V86: 1 | Y86: 850 | Z86: 850 | AA86: 脱贫户
A87: 83 | B87: 界水乡 | C87: 布下村 | D87: 东家坊组 | E87: 欧阳九根 | F87: 3 | G87: 360502*********817 | H87: 360502*********817 | V87: 3.5 | Y87: 1750 | Z87: 1750 | AA87: 脱贫户
A88: 84 | B88: 界水乡 | C88: 布下村 | D88: 洪桥组 | E88: 郭小连 | F88: 5 | G88: 360502*********828 | H88: 360502*********828 | O88: 34 | Y88: 340 | Z88: 340 | AA88: 脱贫户
A89: 85 | B89: 界水乡 | C89: 布下村 | D89: 湖边组 | E89: 钟根珠 | F89: 1 | G89: 360502*********818 | H89: 360502*********818 | V89: 1 | Y89: 500 | Z89: 500 | AA89: 脱贫户
A90: 86 | B90: 界水乡 | C90: 布下村 | D90: 江背组 | E90: 韩冬根 | F90: 1 | G90: 360502*********81X | H90: 360502*********81X | O90: 30 | V90: 1.3 | W90: 2 | Y90: 1950 | Z90: 1950 | AA90: 脱贫户
A91: 87 | B91: 界水乡 | C91: 布下村 | D91: 吕家组 | E91: 吕华良 | F91: 5 | G91: 360502*********839 | H91: 360502*********839 | V91: 1 | Y91: 500 | Z91: 500 | AA91: 脱贫户
A92: 88 | B92: 界水乡 | C92: 布下村 | D92: 彭家组 | E92: 钟素兰 | F92: 5 | G92: 360502*********840 | H92: 360502*********840 | V92: 1 | Y92: 500 | Z92: 500 | AA92: 脱贫户
A93: 89 | B93: 界水乡 | C93: 布下村 | D93: 新屋下组 | E93: 邵细根 | F93: 1 | G93: 360502*********817 | H93: 360502*********817 | V93: 1 | Y93: 500 | Z93: 500 | AA93: 脱贫户
A94: 90 | B94: 界水乡 | C94: 布下村 | D94: 周家组 | E94: 周生根 | F94: 2 | G94: 360502*********811 | H94: 360502*********811 | O94: 300 | V94: 3.5 | Y94: 4750 | Z94: 4750 | AA94: 脱贫户
A95: 91 | B95: 界水乡 | C95: 甘村堎村 | D95: 甘村组 | E95: 林武昌 | F95: 3 | G95: 360502*********812 | H95: 360502*********812 | O95: 32 | Y95: =I95*500+J95*500+K95*500+L95*1000+M95*300+N95*20+O95*10+P95*20+Q95*200+R95*1000+S95*500+T95*500+U95*500+V95*500+W95*500+X95*2000 -> 320 | Z95: 320 | AA95: 脱贫户
A96: 92 | B96: 界水乡 | C96: 甘村堎村 | D96: 甘村堎组 | E96: 傅才根 | F96: 4 | G96: 360502*********830 | H96: 360502*********830 | X96: 1 | Y96: 2000 | Z96: 2000 | AA96: 脱贫户
A97: 93 | B97: 界水乡 | C97: 甘村堎村 | D97: 甘村堎组 | E97: 龙余良 | F97: 2 | G97: 360502*********812 | H97: 360502*********812 | O97: 37 | Y97: 370 | Z97: 370 | AA97: 脱贫户
A98: 94 | B98: 界水乡 | C98: 甘村堎村 | D98: 井背头组 | E98: 周保香 | F98: 2 | G98: 360502*********84X | H98: 360502*********84X | O98: 51 | Y98: 510 | Z98: 510 | AA98: 脱贫户
A99: 95 | B99: 界水乡 | C99: 甘村堎村 | D99: 冷水坑组 | E99: 张化生 | F99: 4 | G99: 360502*********812 | H99: 360502*********812 | L99: 1 | O99: 46 | Y99: 1460 | Z99: 1460 | AA99: 脱贫户
A100: 96 | B100: 界水乡 | C100: 甘村堎村 | D100: 山家组 | E100: 金群根 | F100: 3 | G100: 360502*********814 | H100: 360502*********814 | O100: 468 | Y100: 4680 | Z100: 4680 | AA100: 脱贫户
A101: 97 | B101: 界水乡 | C101: 甘村堎村 | D101: 山家组 | E101: 李真英 | F101: 3 | G101: 360502*********825 | H101: 360502*********825 | O101: 38 | Y101: 380 | Z101: 380 | AA101: 脱贫户
A102: 98 | B102: 界水乡 | C102: 甘村堎村 | D102: 肖家组 | E102: 肖安平 | F102: 5 | G102: 360502*********813 | H102: 360502*********813 | L102: 7 | O102: 350 | Y102: 10500 | Z102: 10500 | AA102: 脱贫户
A103: 99 | B103: 界水乡 | C103: 高家村 | D103: 高家组 | E103: 高日祥 | F103: 6 | G103: 360502*********813 | H103: 360502*********813 | O103: 32 | X103: 1 | Y103: =I103*500+J103*500+K103*500+L103*1000+M103*300+N103*20+O103*10+P103*20+Q103*200+R103*1000+S103*500+T103*500+U103*500+V103*500+W103*500+X103*2000 -> 2320 | Z103: 2320 | AA103: 脱贫户
A104: 100 | B104: 界水乡 | C104: 高家村 | D104: 高家组 | E104: 高卫平 | F104: 4 | G104: 360502*********816 | H104: 360502*********816 | O104: 32 | Y104: 320 | Z104: 320 | AA104: 脱贫户
A105: 101 | B105: 界水乡 | C105: 高家村 | D105: 高家组 | E105: 张子发 | F105: 2 | G105: 360502*********817 | H105: 360502*********817 | O105: 22 | Y105: 220 | Z105: 220 | AA105: 脱贫户
A106: 102 | B106: 界水乡 | C106: 高家村 | D106: 黎家坊组 | E106: 罗时来 | F106: 2 | G106: 360502*********816 | H106: 360502*********816 | Q106: 12 | Y106: 2400 | Z106: 2400 | AA106: 脱贫户
A107: 103 | B107: 界水乡 | C107: 高家村 | D107: 刘家组 | E107: 刘其得 | F107: 1 | G107: 360502*********816 | H107: 360502*********816 | O107: 32 | Y107: 320 | Z107: 320 | AA107: 脱贫户
A108: 104 | B108: 界水乡 | C108: 高家村 | D108: 庙下组 | E108: 朱仁光 | F108: 3 | G108: 360502*********819 | H108: 360502*********819 | O108: 30 | Y108: 300 | Z108: 300 | AA108: 脱贫户
A109: 105 | B109: 界水乡 | C109: 高家村 | D109: 庙下组 | E109: 朱义光 | F109: 3 | G109: 360502*********853 | H109: 360502*********853 | M109: 22 | O109: 34 | P109: 40 | Y109: 7740 | Z109: 7740 | AA109: 脱贫户
A110: 106 | B110: 界水乡 | C110: 高家村 | D110: 泥水坑组 | E110: 胡金梅 | F110: 2 | G110: 360521*********023 | H110: 360521*********023 | O110: 20 | Y110: 200 | Z110: 200 | AA110: 脱贫户
A111: 107 | B111: 界水乡 | C111: 高家村 | D111: 肖石下组 | E111: 张国栋 | F111: 5 | G111: 360502*********814 | H111: 360502*********814 | O111: 70 | Y111: 700 | Z111: 700 | AA111: 脱贫户
A112: 108 | B112: 界水乡 | C112: 高家村 | D112: 谢家塘组 | E112: 傅金夫 | F112: 2 | G112: 360502*********813 | H112: 360502*********813 | O112: 40 | Y112: 400 | Z112: 400 | AA112: 脱贫户
A113: 109 | B113: 界水乡 | C113: 高家村 | D113: 谢家塘组 | E113: 肖良来 | F113: 2 | G113: 360502*********815 | H113: 360502*********815 | O113: 22 | Y113: 220 | Z113: 220 | AA113: 脱贫户
A114: 110 | B114: 界水乡 | C114: 高家村 | D114: 晏家组 | E114: 胡秋香 | F114: 1 | G114: 360502*********821 | H114: 360502*********821 | O114: 30 | Y114: 300 | Z114: 300 | AA114: 脱贫户
A115: 111 | B115: 界水乡 | C115: 高家村 | D115: 张家组 | E115: 周华香 | F115: 1 | G115: 360502*********826 | H115: 360502*********826 | O115: 33 | Y115: 330 | Z115: 330 | AA115: 脱贫户
A116: 112 | B116: 界水乡 | C116: 横塘村 | D116: 风家台组 | E116: 王禄远 | F116: 5 | G116: 360502*********819 | H116: 360502*********819 | O116: 30 | V116: 1.2 | Y116: =I116*500+J116*500+K116*500+L116*1000+M116*300+N116*20+O116*10+P116*20+Q116*200+R116*1000+S116*500+T116*500+U116*500+V116*500+W116*500+X116*2000 -> 900 | Z116: 900 | AA116: 脱贫户
A117: 113 | B117: 界水乡 | C117: 横塘村 | D117: 下横塘组 | E117: 胡伟立 | F117: 3 | G117: 360502*********811 | H117: 360502*********811 | O117: 38 | Y117: =I117*500+J117*500+K117*500+L117*1000+M117*300+N117*20+O117*10+P117*20+Q117*200+R117*1000+S117*500+T117*500+U117*500+V117*500+W117*500+X117*2000 -> 380 | Z117: 380 | AA117: 脱贫户
A118: 114 | B118: 界水乡 | C118: 黄溪村 | D118: 黄溪组 | E118: 徐寿照 | F118: 1 | G118: 360502*********811 | H118: 360502*********811 | O118: 100 | Y118: =I118*500+J118*500+K118*500+L118*1000+M118*300+N118*20+O118*10+P118*20+Q118*200+R118*1000+S118*500+T118*500+U118*500+V118*500+W118*500+X118*2000 -> 1000 | Z118: 1000 | AA118: 脱贫户
A119: 115 | B119: 界水乡 | C119: 黄溪村 | D119: 黄溪组 | E119: 徐振国 | F119: 4 | G119: 360502*********811 | H119: 360502*********811 | U119: 1 | Y119: 500 | Z119: 500 | AA119: 脱贫户
A120: 116 | B120: 界水乡 | C120: 黄溪村 | D120: 落且组 | E120: 邹伍根 | F120: 4 | G120: 360502*********817 | H120: 360502*********817 | I120: 1 | O120: 30 | V120: 2 | Y120: 1800 | Z120: 1800 | AA120: 脱贫户
A121: 117 | B121: 界水乡 | C121: 黄溪村 | D121: 下兰组 | E121: 易火根 | F121: 2 | G121: 360502*********810 | H121: 360502*********810 | O121: 30 | Y121: 300 | Z121: 300 | AA121: 脱贫户
A122: 118 | B122: 界水乡 | C122: 黄溪村 | D122: 下兰组 | E122: 钟炳珠 | F122: 4 | G122: 360502*********818 | H122: 360502*********818 | O122: 30 | Y122: 300 | Z122: 300 | AA122: 脱贫户
A123: 119 | B123: 界水乡 | C123: 黄溪村 | D123: 新下布组 | E123: 黄致群 | F123: 6 | G123: 360502*********818 | H123: 360502*********818 | S123: 1 | Y123: 500 | Z123: 500 | AA123: 脱贫户
A124: 120 | B124: 界水乡 | C124: 联盟村 | D124: 白岭组 | E124: 黄青连 | F124: 1 | G124: 360502*********844 | H124: 360502*********844 | O124: 33 | Y124: =I124*500+J124*500+K124*500+L124*1000+M124*300+N124*20+O124*10+P124*20+Q124*200+R124*1000+S124*500+T124*500+U124*500+V124*500+W124*500+X124*2000 -> 330 | Z124: 330 | AA124: 脱贫户
A125: 121 | B125: 界水乡 | C125: 联盟村 | D125: 上村组 | E125: 刘晓荣 | F125: 1 | G125: 360502*********85X | H125: 360502*********85X | O125: 28 | Y125: 280 | Z125: 280 | AA125: 脱贫户
A126: 122 | B126: 界水乡 | C126: 联盟村 | D126: 上村组 | E126: 涂新国 | F126: 2 | G126: 360502*********818 | H126: 360502*********818 | O126: 32 | Y126: 320 | Z126: 320 | AA126: 脱贫户
A127: 123 | B127: 界水乡 | C127: 联盟村 | D127: 西村组 | E127: 陈美英 | F127: 1 | G127: 360502*********821 | H127: 360502*********821 | O127: 24 | Y127: 240 | Z127: 240 | AA127: 脱贫户
A128: 124 | B128: 界水乡 | C128: 联盟村 | D128: 西村组 | E128: 张正根 | F128: 2 | G128: 360502*********816 | H128: 360502*********816 | O128: 300 | S128: 20 | V128: 2 | Y128: 14000 | Z128: 14000 | AA128: 脱贫户
A129: 125 | B129: 界水乡 | C129: 联盟村 | D129: 西村组 | E129: 周年根 | F129: 1 | G129: 360502*********85X | H129: 360502*********85X | O129: 35 | Y129: 350 | Z129: 350 | AA129: 脱贫户
A130: 126 | B130: 界水乡 | C130: 联盟村 | D130: 下村组 | E130: 周胜茂 | F130: 7 | G130: 360502*********813 | H130: 360502*********813 | O130: 26 | Y130: 260 | Z130: 260 | AA130: 脱贫户
A131: 127 | B131: 良山镇 | C131: 敖家村 | D131: 坑口组 | E131: 胡国华 | F131: 2 | G131: 360502*********672 | H131: 360502*********672 | O131: 36 | Y131: =I131*500+J131*500+K131*500+L131*1000+M131*300+N131*20+O131*10+P131*20+Q131*200+R131*1000+S131*500+T131*500+U131*500+V131*500+W131*500+X131*2000 -> 360 | Z131: 360 | AA131: 脱贫户
A132: 128 | B132: 良山镇 | C132: 敖家村 | D132: 坑口组 | E132: 谭恩辉 | F132: 2 | G132: 360502*********654 | H132: 360502*********654 | L132: 1 | O132: 30 | V132: 4 | Y132: =I132*500+J132*500+K132*500+L132*1000+M132*300+N132*20+O132*10+P132*20+Q132*200+R132*1000+S132*500+T132*500+U132*500+V132*500+W132*500+X132*2000 -> 3300 | Z132: 3300 | AA132: 脱贫户
A133: 129 | B133: 良山镇 | C133: 敖家村 | D133: 秧坑组 | E133: 林正英 | F133: 1 | G133: 360502*********621 | H133: 360502*********621 | L133: 1 | Y133: =I133*500+J133*500+K133*500+L133*1000+M133*300+N133*20+O133*10+P133*20+Q133*200+R133*1000+S133*500+T133*500+U133*500+V133*500+W133*500+X133*2000 -> 1000 | Z133: 1000 | AA133: 脱贫户
A134: 130 | B134: 良山镇 | C134: 八百桥村 | D134: 八百桥组 | E134: 陈红英 | F134: 2 | G134: 360502*********660 | H134: =REPLACE(G134,7,9,"*********") -> 360502*********660 | K134: 0.5 | Y134: =I134*500+J134*500+K134*500+L134*1000+M134*300+N134*20+O134*10+P134*20+Q134*200+R134*1000+S134*500+T134*500+U134*500+V134*500+W134*500+X134*2000 -> 250 | Z134: 250 | AA134: 脱贫户
A135: 131 | B135: 良山镇 | C135: 八百桥村 | D135: 上里元组 | E135: 李发英 | F135: 1 | G135: 360502*********72X | H135: 360502*********72X | O135: 25 | Y135: 250 | Z135: 250 | AA135: 脱贫户
A136: 132 | B136: 良山镇 | C136: 八百桥村 | D136: 渥塘组 | E136: 袁小平 | F136: 3 | G136: 360502*********632 | H136: 360502*********632 | L136: 2 | O136: 70 | Y136: 2700 | Z136: 2700 | AA136: 脱贫户
A137: 133 | B137: 良山镇 | C137: 八百桥村 | D137: 下里元组 | E137: 罗红德 | F137: 2 | G137: 360502*********616 | H137: 360502*********616 | O137: 40 | Y137: 400 | Z137: 400 | AA137: 脱贫户
A138: 134 | B138: 良山镇 | C138: 八百桥村 | D138: 英台上组 | E138: 黄南英 | F138: 1 | G138: 360502*********720 | H138: 360502*********720 | O138: 21 | Y138: 210 | Z138: 210 | AA138: 脱贫户
A139: 135 | B139: 良山镇 | C139: 八百桥村 | D139: 英台上组 | E139: 袁绍兰 | F139: 1 | G139: 360502*********64X | H139: 360502*********64X | O139: 36 | Y139: 360 | Z139: 360 | AA139: 脱贫户
A140: 136 | B140: 良山镇 | C140: 八百桥村 | D140: 英台上组 | E140: 张发根 | F140: 3 | G140: 360502*********65X | H140: 360502*********65X | O140: 28 | Y140: 280 | Z140: 280 | AA140: 脱贫户
A141: 137 | B141: 良山镇 | C141: 八百桥村 | D141: 英台上组 | E141: 张永锋 | F141: 6 | G141: 360502*********61X | H141: 360502*********61X | I141: 2 | O141: 29 | V141: 1 | Y141: 1790 | Z141: 1790 | AA141: 脱贫户
A142: 138 | B142: 良山镇 | C142: 白沙村 | D142: 白沙组 | E142: 盛新华 | F142: 4 | G142: 360502*********639 | H142: 360502*********639 | O142: 105 | Q142: 2 | V142: 1 | Y142: =I142*500+J142*500+K142*500+L142*1000+M142*300+N142*20+O142*10+P142*20+Q142*200+R142*1000+S142*500+T142*500+U142*500+V142*500+W142*500+X142*2000 -> 1950 | Z142: 1950 | AA142: 脱贫户
A143: 139 | B143: 良山镇 | C143: 白沙村 | D143: 白沙组 | E143: 宋梅兰 | F143: 2 | G143: 360502*********649 | H143: 360502*********649 | O143: 30 | V143: 1 | Y143: 800 | Z143: 800 | AA143: 脱贫户
A144: 140 | B144: 良山镇 | C144: 白沙村 | D144: 白沙组 | E144: 万根妹 | F144: 1 | G144: 360502*********625 | H144: 360502*********625 | O144: 35 | Y144: 350 | Z144: 350 | AA144: 脱贫户
A145: 141 | B145: 良山镇 | C145: 白沙村 | D145: 天水江组 | E145: 刘善玉 | F145: 2 | G145: 360502*********614 | H145: 360502*********614 | V145: 1 | Y145: 500 | Z145: 500 | AA145: 脱贫户
A146: 142 | B146: 良山镇 | C146: 白沙村 | D146: 桐溪组 | E146: 应桂莲 | F146: 1 | G146: 360502*********623 | H146: 360502*********623 | V146: 1 | Y146: 500 | Z146: 500 | AA146: 脱贫户
A147: 143 | B147: 良山镇 | C147: 白沙村 | D147: 张家组 | E147: 胡秀连 | F147: 1 | G147: 360502*********62X | H147: 360502*********62X | V147: 1 | Y147: 500 | Z147: 500 | AA147: 脱贫户
A148: 144 | B148: 良山镇 | C148: 白沙村 | D148: 张家组 | E148: 万桂英 | F148: 2 | G148: 360502*********649 | H148: 360502*********649 | V148: 1 | Y148: 500 | Z148: 500 | AA148: 脱贫户
A149: 145 | B149: 良山镇 | C149: 黄虎村 | D149: 龙窝组 | E149: 杨年根 | F149: 2 | G149: 360502*********613 | H149: 360502*********613 | O149: 80 | S149: 1 | V149: 3.5 | Y149: =I149*500+J149*500+K149*500+L149*1000+M149*300+N149*20+O149*10+P149*20+Q149*200+R149*1000+S149*500+T149*500+U149*500+V149*500+W149*500+X149*2000 -> 3050 | Z149: 3050 | AA149: 未消除风险的监测对象
A150: 146 | B150: 良山镇 | C150: 黄虎村 | D150: 楼子下组 | E150: 李新太 | F150: 1 | G150: 360502*********61X | H150: 360502*********61X | V150: 1 | Y150: 500 | Z150: 500 | AA150: 脱贫户
A151: 147 | B151: 良山镇 | C151: 黄虎村 | D151: 上黄虎组 | E151: 胡建辉 | F151: 2 | G151: 360502*********612 | H151: 360502*********612 | I151: 1 | O151: 23 | S151: 1 | V151: 2 | Y151: 2230 | Z151: 2230 | AA151: 脱贫户
A152: 148 | B152: 良山镇 | C152: 黄虎村 | D152: 上黄虎组 | E152: 胡勇生 | F152: 5 | G152: 360502*********635 | H152: 360502*********635 | X152: 1 | Y152: 2000 | Z152: 2000 | AA152: 脱贫户
A153: 149 | B153: 良山镇 | C153: 黄虎村 | D153: 上黄虎组 | E153: 李云香 | F153: 1 | G153: 360502*********627 | H153: 360502*********627 | O153: 21 | S153: 1 | V153: 1.5 | Y153: 1460 | Z153: 1460 | AA153: 脱贫户
A154: 150 | B154: 良山镇 | C154: 黄虎村 | D154: 上黄虎组 | E154: 邹义文 | F154: 2 | G154: 360502*********616 | H154: 360502*********616 | I154: 1 | S154: 1 | V154: 2 | Y154: 2000 | Z154: 2000 | AA154: 脱贫户
A155: 151 | B155: 良山镇 | C155: 黄虎村 | D155: 下左江组 | E155: 万云明 | F155: 2 | G155: 360502*********613 | H155: 360502*********613 | V155: 1.5 | Y155: 750 | Z155: 750 | AA155: 脱贫户
A156: 152 | B156: 良山镇 | C156: 黄虎村 | D156: 下左江组 | E156: 王 良 | F156: 2 | G156: 360502*********611 | H156: 360502*********611 | I156: 1 | O156: 30 | S156: 1 | V156: 2 | Y156: 2300 | Z156: 2300 | AA156: 脱贫户
A157: 153 | B157: 良山镇 | C157: 鹊桥村 | D157: 岑下组 | E157: 欧阳生礼 | F157: 2 | G157: 360502*********635 | H157: 360502*********635 | Q157: 30 | Y157: =I157*500+J157*500+K157*500+L157*1000+M157*300+N157*20+O157*10+P157*20+Q157*200+R157*1000+S157*500+T157*500+U157*500+V157*500+W157*500+X157*2000 -> 6000 | Z157: 6000 | AA157: 脱贫户
A158: 154 | B158: 良山镇 | C158: 鹊桥村 | D158: 东家组 | E158: 丁金根 | F158: 2 | G158: 360502*********630 | H158: 360502*********630 | I158: 1 | O158: 40 | V158: 3 | Y158: 2400 | Z158: 2400 | AA158: 脱贫户
A159: 155 | B159: 良山镇 | C159: 鹊桥村 | D159: 东家组 | E159: 李仁忠 | F159: 2 | G159: 360502*********639 | H159: 360502*********639 | I159: 1 | O159: 30 | Y159: 800 | Z159: 800 | AA159: 脱贫户
A160: 156 | B160: 良山镇 | C160: 鹊桥村 | D160: 彭坊组 | E160: 李俭女 | F160: 2 | G160: 360502*********634 | H160: 360502*********634 | O160: 30 | V160: 1 | Y160: 800 | Z160: 800 | AA160: 脱贫户
A161: 157 | B161: 良山镇 | C161: 鹊桥村 | D161: 彭坊组 | E161: 李永财 | F161: 2 | G161: 360502*********615 | H161: 360502*********615 | I161: 1 | O161: 45 | V161: 2 | Y161: 1950 | Z161: 1950 | AA161: 脱贫户
A162: 158 | B162: 良山镇 | C162: 鹊桥村 | D162: 鹊桥组 | E162: 王兰芳 | F162: 4 | G162: 360502*********646 | H162: 360502*********646 | O162: 20 | Y162: 200 | Z162: 200 | AA162: 脱贫户
A163: 159 | B163: 良山镇 | C163: 鹊桥村 | D163: 鹊桥组 | E163: 袁忠根 | F163: 3 | G163: 360502*********677 | H163: 360502*********677 | I163: 1 | O163: 20 | Y163: 700 | Z163: 700 | AA163: 脱贫户
A164: 160 | B164: 良山镇 | C164: 鹊桥村 | D164: 塘上组 | E164: 尹春香 | F164: 1 | G164: 360502*********623 | H164: 360502*********623 | V164: 1 | Y164: 500 | Z164: 500 | AA164: 脱贫户
A165: 161 | B165: 良山镇 | C165: 鹊桥村 | D165: 洲上组 | E165: 李萍 | F165: 4 | G165: 360502*********614 | H165: 360502*********614 | O165: 31 | Y165: 310 | Z165: 310 | AA165: 脱贫户
A166: 162 | B166: 良山镇 | C166: 鹊桥村 | D166: 洲上组 | E166: 李云生 | F166: 2 | G166: 360502*********630 | H166: 360502*********630 | O166: 30 | Y166: 300 | Z166: 300 | AA166: 脱贫户
A167: 163 | B167: 良山镇 | C167: 鹊桥村 | D167: 宗子组 | E167: 梁云根 | F167: 4 | G167: 360502*********610 | H167: 360502*********610 | I167: 1 | O167: 450 | V167: 1 | Y167: 5500 | Z167: 5500 | AA167: 脱贫户
A168: 164 | B168: 良山镇 | C168: 舍山村 | D168: 合江组 | E168: 黄全平 | F168: 1 | G168: 360502*********63X | H168: 360502*********63X | V168: 1.5 | Y168: =I168*500+J168*500+K168*500+L168*1000+M168*300+N168*20+O168*10+P168*20+Q168*200+R168*1000+S168*500+T168*500+U168*500+V168*500+W168*500+X168*2000 -> 750 | Z168: 750 | AA168: 脱贫户
A169: 165 | B169: 良山镇 | C169: 舍山村 | D169: 合江组 | E169: 杨和生 | F169: 2 | G169: 360502*********655 | H169: 360502*********655 | L169: 1 | O169: 30 | Q169: 8 | V169: 1 | Y169: 3400 | Z169: 3400 | AA169: 脱贫户
A170: 166 | B170: 良山镇 | C170: 舍山村 | D170: 河沙组 | E170: 许根生 | F170: 1 | G170: 360502*********644 | H170: 360502*********644 | V170: 1 | Y170: 500 | Z170: 500 | AA170: 脱贫户
A171: 167 | B171: 良山镇 | C171: 舍山村 | D171: 河沙组 | E171: 许万根 | F171: 2 | G171: 360502*********659 | H171: 360502*********659 | V171: 1 | Y171: 500 | Z171: 500 | AA171: 脱贫户
A172: 168 | B172: 良山镇 | C172: 舍山村 | D172: 浒江组 | E172: 袁梅英 | F172: 1 | G172: 360502*********621 | H172: 360502*********621 | O172: 60 | V172: 1 | Y172: 1100 | Z172: 1100 | AA172: 脱贫户
A173: 169 | B173: 良山镇 | C173: 舍山村 | D173: 小坑组 | E173: 李小云 | F173: 2 | G173: 360502*********636 | H173: 360502*********636 | O173: 60 | V173: 1 | Y173: 1100 | Z173: 1100 | AA173: 脱贫户
A174: 170 | B174: 良山镇 | C174: 下保村 | D174: 黄芹元组 | E174: 喻太来 | F174: 2 | G174: 360502*********61643 | H174: 360502*********61643 | I174: 1 | O174: 34 | Y174: =I174*500+J174*500+K174*500+L174*1000+M174*300+N174*20+O174*10+P174*20+Q174*200+R174*1000+S174*500+T174*500+U174*500+V174*500+W174*500+X174*2000 -> 840 | Z174: 840 | AA174: 脱贫户
A175: 171 | B175: 良山镇 | C175: 下保村 | D175: 清溪组 | E175: 周振中 | F175: 2 | G175: 360502*********673 | H175: 360502*********673 | O175: 34 | V175: 1 | Y175: 840 | Z175: 840 | AA175: 脱贫户
A176: 172 | B176: 良山镇 | C176: 下保村 | D176: 塘元组 | E176: 廖三妹 | F176: 1 | G176: 360502*********623 | H176: 360502*********623 | S176: 2 | V176: 1 | Y176: 1500 | Z176: 1500 | AA176: 脱贫户
A177: 173 | B177: 良山镇 | C177: 下保村 | D177: 王坑组 | E177: 江丽娜 | F177: 3 | G177: 360502*********621 | H177: 360502*********621 | K177: 1 | V177: 1 | Y177: 1000 | Z177: 1000 | AA177: 脱贫户
A178: 174 | B178: 良山镇 | C178: 下保村 | D178: 下保组 | E178: 何细块 | F178: 3 | G178: 360502*********613 | H178: 360502*********613 | K178: 1 | S178: 1 | Y178: 1000 | Z178: 1000 | AA178: 脱贫户
A179: 175 | B179: 良山镇 | C179: 下保村 | D179: 塂上组 | E179: 陈根牙 | F179: 4 | G179: 360502*********63343 | H179: 360502*********63343 | O179: 27 | V179: 1 | Y179: 770 | Z179: 770 | AA179: 脱贫户
A180: 176 | B180: 良山镇 | C180: 下保村 | D180: 塂上组 | E180: 胡建华 | F180: 2 | G180: 360502*********63042 | H180: 360502*********63042 | O180: 24 | V180: 1 | Y180: 740 | Z180: 740 | AA180: 脱贫户
A181: 177 | B181: 良山镇 | C181: 夏莲村 | D181: 对门组 | E181: 郭小猫 | F181: 5 | G181: 360502*********612 | H181: 360502*********612 | S181: 1 | Y181: =I181*500+J181*500+K181*500+L181*1000+M181*300+N181*20+O181*10+P181*20+Q181*200+R181*1000+S181*500+T181*500+U181*500+V181*500+W181*500+X181*2000 -> 500 | Z181: 500 | AA181: 脱贫户
A182: 178 | B182: 良山镇 | C182: 夏莲村 | D182: 对门组 | E182: 严九明 | F182: 3 | G182: 360502*********617 | H182: 360502*********617 | X182: 1 | Y182: =I182*500+J182*500+K182*500+L182*1000+M182*300+N182*20+O182*10+P182*20+Q182*200+R182*1000+S182*500+T182*500+U182*500+V182*500+W182*500+X182*2000 -> 2000 | Z182: 2000 | AA182: 脱贫户
A183: 179 | B183: 良山镇 | C183: 夏莲村 | D183: 丰林坑组 | E183: 周四宝 | F183: 2 | G183: 360502*********650 | H183: 360502*********650 | V183: 5 | Y183: =I183*500+J183*500+K183*500+L183*1000+M183*300+N183*20+O183*10+P183*20+Q183*200+R183*1000+S183*500+T183*500+U183*500+V183*500+W183*500+X183*2000 -> 2500 | Z183: 2500 | AA183: 脱贫户
A184: 180 | B184: 良山镇 | C184: 夏莲村 | D184: 谢家组 | E184: 刘细猫 | F184: 2 | G184: 360502*********652 | H184: 360502*********652 | O184: 20 | Y184: =I184*500+J184*500+K184*500+L184*1000+M184*300+N184*20+O184*10+P184*20+Q184*200+R184*1000+S184*500+T184*500+U184*500+V184*500+W184*500+X184*2000 -> 200 | Z184: 200 | AA184: 未消除风险的监测对象
A185: 181 | B185: 良山镇 | C185: 夏莲村 | D185: 园里组 | E185: 严生根 | F185: 3 | G185: 360502*********61X | H185: 360502*********61X | S185: 1 | Y185: =I185*500+J185*500+K185*500+L185*1000+M185*300+N185*20+O185*10+P185*20+Q185*200+R185*1000+S185*500+T185*500+U185*500+V185*500+W185*500+X185*2000 -> 500 | Z185: 500 | AA185: 脱贫户
A186: 182 | B186: 良山镇 | C186: 垣下村 | D186: 坑头组 | E186: 陈春兰 | F186: 2 | G186: 360502*********643 | H186: 360502*********643 | V186: 2 | Y186: =I186*500+J186*500+K186*500+L186*1000+M186*300+N186*20+O186*10+P186*20+Q186*200+R186*1000+S186*500+T186*500+U186*500+V186*500+W186*500+X186*2000 -> 1000 | Z186: 1000 | AA186: 脱贫户
A187: 183 | B187: 良山镇 | C187: 垣下村 | D187: 新丁家组 | E187: 万斯仁 | F187: 3 | G187: 360502*********657 | H187: 360502*********657 | V187: 3 | Y187: =I187*500+J187*500+K187*500+L187*1000+M187*300+N187*20+O187*10+P187*20+Q187*200+R187*1000+S187*500+T187*500+U187*500+V187*500+W187*500+X187*2000 -> 1500 | Z187: 1500 | AA187: 脱贫户
A188: 184 | B188: 良山镇 | C188: 周宇村 | D188: 岺下组 | E188: 金文华 | F188: 2 | G188: 360502*********653 | H188: 360502*********653 | O188: 30 | V188: 2 | Y188: =I188*500+J188*500+K188*500+L188*1000+M188*300+N188*20+O188*10+P188*20+Q188*200+R188*1000+S188*500+T188*500+U188*500+V188*500+W188*500+X188*2000 -> 1300 | Z188: 1300 | AA188: 脱贫户
A189: 185 | B189: 良山镇 | C189: 周宇村 | D189: 岺下组 | E189: 万树牙 | F189: 5 | G189: 360502*********712 | H189: 360502*********712 | L189: 1 | O189: 47 | V189: 1 | Y189: =I189*500+J189*500+K189*500+L189*1000+M189*300+N189*20+O189*10+P189*20+Q189*200+R189*1000+S189*500+T189*500+U189*500+V189*500+W189*500+X189*2000 -> 1970 | Z189: 1970 | AA189: 脱贫户
A190: 186 | B190: 良山镇 | C190: 周宇村 | D190: 上木元组 | E190: 章春华 | F190: 1 | G190: 360502*********630 | H190: 360502*********630 | O190: 55 | Y190: =I190*500+J190*500+K190*500+L190*1000+M190*300+N190*20+O190*10+P190*20+Q190*200+R190*1000+S190*500+T190*500+U190*500+V190*500+W190*500+X190*2000 -> 550 | Z190: 550 | AA190: 脱贫户
A191: 187 | B191: 良山镇 | C191: 庄头村 | D191: 会口组 | E191: 梁振武 | F191: 2 | G191: 360502*********632 | H191: 360502*********632 | O191: 34 | Y191: =I191*500+J191*500+K191*500+L191*1000+M191*300+N191*20+O191*10+P191*20+Q191*200+R191*1000+S191*500+T191*500+U191*500+V191*500+W191*500+X191*2000 -> 340 | Z191: 340 | AA191: 脱贫户
A192: 188 | B192: 良山镇 | C192: 庄头村 | D192: 会口组 | E192: 廖月英 | F192: 2 | G192: 360502*********725 | H192: 360502*********725 | O192: 50 | Y192: 500 | Z192: 500 | AA192: 脱贫户
A193: 189 | B193: 良山镇 | C193: 庄头村 | D193: 太屋组 | E193: 李学华 | F193: 2 | G193: 360502*********637 | H193: 360502*********637 | O193: 30 | V193: 1 | Y193: 800 | Z193: 800 | AA193: 脱贫户
A194: 190 | B194: 良山镇 | C194: 庄头村 | D194: 太屋组 | E194: 吕金莲 | F194: 2 | G194: 360502*********62X | H194: 360502*********62X | O194: 35 | V194: 1 | Y194: 850 | Z194: 850 | AA194: 脱贫户
A195: 191 | B195: 良山镇 | C195: 庄头村 | D195: 下垣组 | E195: 梁平根 | F195: 4 | G195: 360502*********634 | H195: 360502*********634 | O195: 40 | Y195: 400 | Z195: 400 | AA195: 脱贫户
A196: 192 | B196: 良山镇 | C196: 庄头村 | D196: 小洲上组 | E196: 刘兵 | F196: 2 | G196: 360502*********655 | H196: 360502*********655 | O196: 45 | V196: 1 | Y196: 950 | Z196: 950 | AA196: 脱贫户
A197: 193 | B197: 良山镇 | C197: 庄头村 | D197: 新屋下组 | E197: 刘小保 | F197: 4 | G197: 360502*********618 | H197: 360502*********618 | O197: 49 | Y197: 490 | Z197: 490 | AA197: 脱贫户
A198: 194 | B198: 良山镇 | C198: 庄头村 | D198: 庄头组 | E198: 胡桂新 | F198: 4 | G198: 360502*********692 | H198: =REPLACE(G198,7,9,"*********") -> 360502*********692 | O198: 40 | T198: 30.7 | V198: 1 | X198: 1 | Y198: 18250 | Z198: 12900 | AA198: 脱贫户
A199: 195 | B199: 良山镇 | C199: 庄头村 | D199: 庄头组 | E199: 廖敏 | F199: 1 | G199: 360502*********637 | H199: 360502*********637 | L199: 1 | O199: 40 | Y199: 1400 | Z199: 1400 | AA199: 脱贫户
A200: 196 | B200: 罗坊镇 | C200: 邦甫村 | D200: 陂上组 | E200: 胡根芽 | F200: 3 | G200: 360502*********115 | H200: 360502*********115 | O200: 42 | Y200: =I200*500+J200*500+K200*500+L200*1000+M200*300+N200*20+O200*10+P200*20+Q200*200+R200*1000+S200*500+T200*500+U200*500+V200*500+W200*500+X200*2000 -> 420 | Z200: 420 | AA200: 脱贫户
... 1507 more rows
